Cogmind - Beta 12 @@@ ROGUE MODE // 2023.05.13 @ 16:41:08 Player: wchar_t Result: Destroyed by S-27 Virus with Autogun Performance ------------- Evolutions (3) 1500 Regions Visited (9) 1800 Robots Destroyed (11) 55 Value Destroyed (232) 232 Prototype IDs (2) 40 Alien Tech Used (0) 0 Bonus (700) 700 TOTAL SCORE: 4327 Bonus ------- Entered Garrisons 200 Entered DSFs 500 Cogmind --------- Core Integrity 0/700 Matter 111/300 Energy 100/100 System Corruption 10% Temperature Cool (0) Movement Core (50) Location -7/Garrison Parts ------- > --- POWER (1) -------- (None) > --- PROPULSION (5) --- (None) > --- UTILITY (5) ------ Advanced Terrain Scan Processor > --- WEAPON (2) ------- (None) > --- INVENTORY (5) ---- Small Storage Unit Katana Peak State ------------ > --- POWER ------------ (None) > --- PROPULSION ------- Airjet Airjet Airjet Cesium-ion Thruster > --- UTILITY ---------- Advanced Terrain Scan Processor Reaction Control System Improved Phase Shifter > --- WEAPON ----------- Katana > --- INVENTORY -------- Small Storage Unit Missile Launcher [Rating: 29] Favorites ----------- Power None Propulsion Airjet Hover Unit Airjet Flight Unit Cesium-ion Thruster Utility Advanced Terrain Scan Processor Device Reaction Control System Processor Advanced Terrain Scan Processor Weapon Katana Launcher Missile Launcher Slashing Weapon Katana Build | -11 -10 -10 -9 -8 -7 -7 -7 -7 -7 ------- Run | Jun Mat Min Mat Mat Fac Was Fac DSF Gar Slots Evolved 6 | . . . 2 2 2 . . . . Power . | . . . . . . . . . . Propulsion 3 | . . . 1 1 1 . . . . Utility 3 | . . . 1 1 1 . . . . Weapon . | . . . . . . . . . . Parts Attached 22 | . 1 5 3 8 . 1 . 1 3 Power . | . . . . . . . . . . Engine . | . . . . . . . . . . Core . | . . . . . . . . . . Reactor . | . . . . . . . . . . Propulsion 7 | . . 1 1 4 . . . 1 . Treads . | . . . . . . . . . . Leg . | . . . . . . . . . . Wheel . | . . . . . . . . . . Hover 3 | . . . . 3 . . . . . Flight 4 | . . 1 1 1 . . . 1 . Utility 7 | . 1 1 2 1 . 1 . . 1 Device 5 | . . 1 2 . . 1 . . 1 Storage . | . . . . . . . . . . Processor 2 | . 1 . . 1 . . . . . Hackware . | . . . . . . . . . . Protection . | . . . . . . . . . . Artifact . | . . . . . . . . . . Weapon 8 | . . 3 . 3 . . . . 2 Energy Gun . | . . . . . . . . . . Energy Cannon . | . . . . . . . . . . Ballistic Gun . | . . . . . . . . . . Ballistic Cannon . | . . . . . . . . . . Launcher 4 | . . 1 . 1 . . . . 2 Special Weapon . | . . . . . . . . . . Impact Weapon . | . . . . . . . . . . Slashing Weapon 4 | . . 2 . 2 . . . . . Piercing Weapon . | . . . . . . . . . . Special Melee Weapon . | . . . . . . . . . . Unidentified Prototypes 2 | . . 1 1 . . . . . . Parts Lost 10 | . . . . 2 . . . 2 6 Power . | . . . . . . . . . . Propulsion 6 | . . . . 1 . . . 1 4 Utility 3 | . . . . 1 . . . 1 1 Weapon 1 | . . . . . . . . . 1 Highest Loss Streak 5 | . . . . 1 . . . 2 5 To Critical Strikes . | . . . . . . . . . . Average Slot Usage (%) 30 | . 4 14 25 48 53 53 53 50 35 Hover 6 | . . . . 11 23 23 23 20 10 Flight 5 | . . . 7 6 7 7 7 9 11 Device 4 | . . . 7 18 7 7 7 4 . Processor 5 | . 4 8 . 6 7 7 7 7 7 Slashing Weapon 6 | . . 5 11 6 7 7 7 7 5 Naked Turns 21 | . 20 1 . . . . . . . Heaviest Build 5 | . . 2 4 4 3 5 5 3 4 Greatest Support 16 | 3 3 5 5 16 5 5 5 9 9 Greatest Overweight (x) 1 | . . . . 1 . . . . . Average Overweight (x) . | . . . . . . . . . . Largest Inventory Capacity 5 | 5 5 5 5 5 5 5 5 5 5 Average Capacity 5 | 5 5 5 5 5 5 5 5 5 5 Most Carried 5 | . . 5 5 5 2 2 3 3 3 Average Carried 3 | . . 3 4 4 2 2 2 3 2 Final Capacity 5 | 5 5 5 5 5 5 5 5 5 5 Final Carried 5 | . . 5 5 2 2 2 3 3 2 Class Distribution -------------------- 82% | Mutant 17% | Sprinter Dominant Class ---------------- Mutant | -10/Materials Mutant | -10/Mines Mutant | -9/Materials Mutant | -8/Materials Mutant | -7/Factory Mutant | -7/Waste Mutant | -7/Factory Mutant | -7/DSF Sprinter | -7/Garrison Resources | -11 -10 -10 -9 -8 -7 -7 -7 -7 -7 ----------- Run | Jun Mat Min Mat Mat Fac Was Fac DSF Gar Matter Collected 357 | 200 . 101 20 12 . . . 24 . Remotely . | . . . . . . . . . . Salvage Created 235 | . . 152 27 12 . . . . 44 Parts 15 | . . 9 2 4 . . . . . Haulers Intercepted . | . . . . . . . . . . Recyclers Shooed . | . . . . . . . . . . Parts Field Recycled . | . . . . . . . . . . Retrieved Matter . | . . . . . . . . . . Parts Self-Destructed . | . . . . . . . . . . Prevented . | . . . . . . . . . . Kills | -11 -10 -10 -9 -8 -7 -7 -7 -7 -7 ------- Run | Jun Mat Min Mat Mat Fac Was Fac DSF Gar Combat Hostiles Destroyed 8 | . . 3 . 2 . . . . 3 AOE 8 | . . 3 . 2 . . . . 3 Classes Destroyed 4 | . . 2 1 . . . . . 1 Recycler 2 | . . 2 . . . . . . . Watcher 1 | . . . 1 . . . . . . Swarmer 5 | . . 3 . 2 . . . . . Grunt 3 | . . . . . . . . . 3 Best Kill Streak 4 | . . 4 1 2 . . . . 3 Combat Bots Only 3 | . . 3 . 2 . . . . 3 Max Kills in Single Turn 2 | . . 2 1 2 . . . . 1 Gunslinging . | . . . . . . . . . . Exploded 2 | . . 2 . 2 . . . . 1 Melee . | . . . . . . . . . . Uniques/NPCs Destroyed . | . . . . . . . . . . Combat | -11 -10 -10 -9 -8 -7 -7 -7 -7 -7 -------- Run | Jun Mat Min Mat Mat Fac Was Fac DSF Gar Damage Taken 1515 | . 80 110 174 126 . . . 135 890 Core 1003 | . 80 55 134 25 . . . 90 619 Absorbed by Shields 81 | . . . . . . . . . 81 Core Remaining (%) 76 | 100 . 46 66 95 . . . . . Volleys Fired 12 | . . 4 . 2 . . . . 6 Largest 1 | . . 1 . 1 . . . . 1 Hottest 36 | . . 33 . 36 . . . . 36 Shots Fired 12 | . . 4 . 2 . . . . 6 Gun . | . . . . . . . . . . Cannon . | . . . . . . . . . . Launcher 12 | . . 4 . 2 . . . . 6 Special . | . . . . . . . . . . Kinetic . | . . . . . . . . . . Thermal . | . . . . . . . . . . Explosive 12 | . . 4 . 2 . . . . 6 Electromagnetic . | . . . . . . . . . . Robot Hit Streak 6 | . . 1 . 1 . . . . 6 Robot Miss Streak 2 | . . 2 . . . . . . 1 Penetration Max . | . . . . . . . . . . Secondary Targets . | . . . . . . . . . . Shots Hit Robots 10 | . . 2 2 1 . . . . 5 Core Hits 17 | . . 4 2 3 . . . . 8 Critical Kills . | . . . . . . . . . . Critical Parts Destroyed . | . . . . . . . . . . Critical Strikes . | . . . . . . . . . . Melee Attacks 6 | . . 1 2 3 . . . . . Impact . | . . . . . . . . . . Slashing 6 | . . 1 2 3 . . . . . Piercing . | . . . . . . . . . . Sneak Attacks 1 | . . 1 . . . . . . . Combat Hostiles . | . . . . . . . . . . Follow-up Attacks . | . . . . . . . . . . Damage Inflicted 1103 | . . 328 84 83 . . . 3 605 Guns . | . . . . . . . . . . Cannons . | . . . . . . . . . . Explosions 940 | . . 256 . 83 . . . . 601 Melee 141 | . . 72 69 . . . . . . Ramming 22 | . . . 15 . . . . 3 4 Kinetic . | . . . . . . . . . . Thermal . | . . . . . . . . . . Explosive 940 | . . 256 . 83 . . . . 601 Electromagnetic . | . . . . . . . . . . Impact . | . . . . . . . . . . Slashing 141 | . . 72 69 . . . . . . Piercing . | . . . . . . . . . . Highest Corruption 10 | . . . . . . 10 10 10 10 Average Corruption 10 | . . . . . . 10 10 10 10 Corruption Purged . | . . . . . . . . . . Corruption Blocked . | . . . . . . . . . . Effects 15 | . . . . . . 3 . 2 10 Message Errors 2 | . . . . . . 1 . . 1 Matter Fused 5 | . . . . . . 1 . 1 3 Heat Flow Errors 2 | . . . . . . . . 1 1 Energy Discharges 1 | . . . . . . . . . 1 Data Loss (minor) 1 | . . . . . . . . . 1 Misdirections 4 | . . . . . . 1 . . 3 Overload Shots . | . . . . . . . . . . Overflow Damage 42 | . . 42 . . . . . . . Projectiles . | . . . . . . . . . . Explosions . | . . . . . . . . . . Melee 42 | . . 42 . . . . . . . Knockbacks . | . . . . . . . . . . Impact . | . . . . . . . . . . Kinetic . | . . . . . . . . . . Secondary . | . . . . . . . . . . Self-Inflicted Damage 78 | . . . 7 36 . . . 1 34 Shots 2 | . . . . 1 . . . . 1 Rammed 4 | . . . 2 . . . . 1 1 Targets Rammed 4 | . . . 2 . . . . 1 1 Kicked . | . . . . . . . . . . Crushed . | . . . . . . . . . . Highest Temperature 109 | . 5 . . . . . . 84 109 Average Temperature 52 | . 5 . . . . . . 64 57 Received Heat Transfer 252 | . 45 . 81 54 . . . . 72 Siege Activations . | . . . . . . . . . . Robots Corrupted . | . . . . . . . . . . Combat Hostiles . | . . . . . . . . . . Parts Fried . | . . . . . . . . . . Impact Corruptions . | . . . . . . . . . . Robots Melted . | . . . . . . . . . . Combat Hostiles . | . . . . . . . . . . Parts Melted . | . . . . . . . . . . Heat Transferred . | . . . . . . . . . . Parts Sabotaged . | . . . . . . . . . . Parts Stolen . | . . . . . . . . . . Parts Stripped . | . . . . . . . . . . Power Chain Reactions . | . . . . . . . . . . Missiles Intercepted . | . . . . . . . . . . Alert | -11 -10 -10 -9 -8 -7 -7 -7 -7 -7 ------- Run | Jun Mat Min Mat Mat Fac Was Fac DSF Gar Peak Influence 263 | . 16 111 169 263 114 69 49 34 172 Initial 114 | . . 6 42 70 114 39 34 34 10 Average 79 | . 12 33 84 189 114 50 46 29 97 Maximum Alert Level 1 | . . . . 1 . . . . . Low Security (%) 95 | 100 100 100 100 72 100 100 100 100 100 Level 1 4 | . . . . 28 . . . . . Level 2 . | . . . . . . . . . . Level 3 . | . . . . . . . . . . Level 4 . | . . . . . . . . . . Level 5 . | . . . . . . . . . . High Security . | . . . . . . . . . . Max Security . | . . . . . . . . . . Squads Dispatched 6 | . 1 . 3 1 . . . 1 . Investigation 2 | . 1 . 1 . . . . . . Extermination . | . . . . . . . . . . Reinforcement 4 | . . . 2 1 . . . 1 . Assault . | . . . . . . . . . . Garrison . | . . . . . . . . . . Intercept . | . . . . . . . . . . Searches Triggered . | . . . . . . . . . . Construction Impeded . | . . . . . . . . . . Haulers Reinforced . | . . . . . . . . . . Active Scanning Responses . | . . . . . . . . . . Cargo Convoy Interrupts . | . . . . . . . . . . Stealth | -11 -10 -10 -9 -8 -7 -7 -7 -7 -7 --------- Run | Jun Mat Min Mat Mat Fac Was Fac DSF Gar Distress Signals 2 | . . . 2 . . . . . . Communications Jammed . | . . . . . . . . . . Distress Signals . | . . . . . . . . . . Times Spotted 59 | . 6 3 12 14 . 4 . 4 16 Peak Tracking Total 13 | . 6 3 9 8 . 4 . 3 13 Tactical Retreats 5 | . . . 2 2 . . . . 1 Traps | -11 -10 -10 -9 -8 -7 -7 -7 -7 -7 ------- Run | Jun Mat Min Mat Mat Fac Was Fac DSF Gar Traps Triggered 5 | . . . 1 . 1 . . . 3 Indirectly . | . . . . . . . . . . Trap Hack Attempts . | . . . . . . . . . . Triggered . | . . . . . . . . . . Disarmed . | . . . . . . . . . . Reprogrammed . | . . . . . . . . . . Reused . | . . . . . . . . . . Traps Extracted . | . . . . . . . . . . Installed . | . . . . . . . . . . Triggered . | . . . . . . . . . . Machines | -11 -10 -10 -9 -8 -7 -7 -7 -7 -7 ---------- Run | Jun Mat Min Mat Mat Fac Was Fac DSF Gar Machines Disabled 1 | . . . . 1 . . . . . Max in Single Turn 1 | . . . . 1 . . . . . Machines Repaired . | . . . . . . . . . . Machines Sabotaged . | . . . . . . . . . . Overloaded Fab Kills . | . . . . . . . . . . Hacking | -11 -10 -10 -9 -8 -7 -7 -7 -7 -7 --------- Run | Jun Mat Min Mat Mat Fac Was Fac DSF Gar Machines Accessed 8 | . 1 2 . 2 . . 1 . 2 Terminals 6 | . 1 . . 2 . . 1 . 2 Fabricators . | . . . . . . . . . . Repair Stations . | . . . . . . . . . . Recycling Units . | . . . . . . . . . . Scanalyzers . | . . . . . . . . . . Garrison Access . | . . . . . . . . . . Total Hacks 18 | . 3 2 . 7 . . 1 . 5 Successful 5 | . 1 2 . 1 . . 1 . . Failed 13 | . 2 . . 6 . . . . 5 Catastrophic 1 | . . . . 1 . . . . . Database Lockouts . | . . . . . . . . . . Manual 4 | . . . . 4 . . . . . Terminals 16 | . 3 . . 7 . . 1 . 5 Fabricators . | . . . . . . . . . . Repair Stations . | . . . . . . . . . . Recycling Units . | . . . . . . . . . . Scanalyzers . | . . . . . . . . . . Garrison Access . | . . . . . . . . . . Terminal Hacks 5 | . 1 2 . 1 . . 1 . . Open Door 2 | . . 2 . . . . . . . Open DSF 1 | . . . . . . . 1 . . Branch Access Points 1 | . 1 . . . . . . . . Registered Prototypes 1 | . . . . 1 . . . . . Fabricator Hacks . | . . . . . . . . . . Repair Station Hacks . | . . . . . . . . . . Recycling Unit Hacks . | . . . . . . . . . . Scanalyzer . | . . . . . . . . . . Garrison Access Hacks . | . . . . . . . . . . Unauthorized Hacks . | . . . . . . . . . . Terminals . | . . . . . . . . . . Fabricators . | . . . . . . . . . . Repair Stations . | . . . . . . . . . . Recycling Units . | . . . . . . . . . . Scanalyzers . | . . . . . . . . . . Garrison Access . | . . . . . . . . . . Data Cores Recovered . | . . . . . . . . . . Used . | . . . . . . . . . . Hacking Detections 5 | . 1 . . 2 . . . . 2 Full Trace Events 1 | . 1 . . . . . . . . Feedback Events . | . . . . . . . . . . Feedback Blocked . | . . . . . . . . . . Robot Schematics Acquired . | . . . . . . . . . . Robots Built . | . . . . . . . . . . Authchips . | . . . . . . . . . . Time . | . . . . . . . . . . Total Robot Build Rating . | . . . . . . . . . . Part Schematics Acquired . | . . . . . . . . . . Parts Built . | . . . . . . . . . . Authchips . | . . . . . . . . . . Time . | . . . . . . . . . . Total Part Build Rating . | . . . . . . . . . . Parts Repaired . | . . . . . . . . . . Time . | . . . . . . . . . . Parts Recycled . | . . . . . . . . . . Recycled Matter . | . . . . . . . . . . Retrieved Matter . | . . . . . . . . . . Retrieved Components . | . . . . . . . . . . Parts Scanalyzed . | . . . . . . . . . . Part Schematics Acquired . | . . . . . . . . . . Parts Damaged . | . . . . . . . . . . Bothacking | -11 -10 -10 -9 -8 -7 -7 -7 -7 -7 ------------ Run | Jun Mat Min Mat Mat Fac Was Fac DSF Gar Used RIF Installer . | . . . . . . . . . . Robots Hacked . | . . . . . . . . . . Non-combat . | . . . . . . . . . . Combat . | . . . . . . . . . . Robot Hacks Applied . | . . . . . . . . . . Relay Couplers Released . | . . . . . . . . . . Fabnet Peak Effective % . | . . . . . . . . . . Robots Rewired . | . . . . . . . . . . Allies Hacked . | . . . . . . . . . . Hacks Repelled . | . . . . . . . . . . Allies | -11 -10 -10 -9 -8 -7 -7 -7 -7 -7 -------- Run | Jun Mat Min Mat Mat Fac Was Fac DSF Gar Total Allies 1 | . . . . . . 1 . . . Largest Group 1 | . . . . . . 1 . . . Highest-Rated Group 31 | . . . . . . 31 . . . Highest-Rated Ally 31 | . . . . . . 31 . . . Total Orders . | . . . . . . . . . . Ally Attacks 9 | . . . . . . 9 . . . Total Damage 149 | . . . . . . 149 . . . Kills . | . . . . . . . . . . Allies Corrupted . | . . . . . . . . . . Allies Melted . | . . . . . . . . . . Intel | -11 -10 -10 -9 -8 -7 -7 -7 -7 -7 ------- Run | Jun Mat Min Mat Mat Fac Was Fac DSF Gar Robot Analysis Total . | . . . . . . . . . . Derelict Logs Recovered 1 | . . 1 . . . . . . . Drone Launches . | . . . . . . . . . . Drone Recoveries . | . . . . . . . . . . Exploration | -11 -10 -10 -9 -8 -7 -7 -7 -7 -7 ------------- Run | Jun Mat Min Mat Mat Fac Was Fac DSF Gar Turns Passed 824 | 13 33 243 144 125 8 46 17 33 162 Spaces Moved 1623 | 27 62 442 306 220 22 117 24 90 313 Core 745 | 27 62 440 88 64 . . . . 64 Treads . | . . . . . . . . . . Legs . | . . . . . . . . . . Wheels . | . . . . . . . . . . Hover 2 | . . . . 2 . . . . . Flight 876 | . . 2 218 154 22 117 24 90 249 Fastest Speed 29 | 50 50 35 40 35 35 35 35 29 29 Average Speed 42 | 50 50 49 42 43 35 35 35 33 35 Slowest Speed 100 | 50 50 50 50 100 35 35 35 35 50 Overloaded Moves 20 | . . . . . . . . 16 4 Propulsion Burnouts . | . . . . . . . . . . Robots Hopped 5 | . . . 1 2 . . . . 2 Cave-ins Triggered . | . . . . . . . . . . Exploration Rate (%) 37 | 4 19 85 42 35 1 87 1 51 49 Regions Visited 9 Branch Regions 1 Pre-discovered Areas . | . . . . . . . . . . Known Exits Taken 2 | . 1 . . . . . 1 . . Unknown Exits Taken 4 | 1 . 1 1 1 . . . . . Scrap Searched 1 | . . 1 . . . . . . . Spaces Dug . | . . . . . . . . . . Terrain Destroyed 102 | . . 39 . 20 . . . . 43 Melee . | . . . . . . . . . . Projectile . | . . . . . . . . . . AOE 102 | . . 39 . 20 . . . . 43 Terrain Rammed . | . . . . . . . . . . Walls Destroyed . | . . . . . . . . . . Machines Disabled . | . . . . . . . . . . Actions | -11 -10 -10 -9 -8 -7 -7 -7 -7 -7 --------- Run | Jun Mat Min Mat Mat Fac Was Fac DSF Gar Total 1714 | 26 62 457 313 239 22 120 32 91 352 Wait 16 | . . . . 5 . 3 8 . . Move 1603 | 26 61 441 303 215 22 116 23 89 307 Hop 5 | . . . 1 2 . . . . 2 Pick Up 5 | . . 3 1 1 . . . . . Fast Attach 12 | . 1 2 3 4 . 1 . 1 . Attach 5 | . . 1 . 2 . . . . 2 Detach 6 | . . 3 . 1 . . 1 . 1 Swap 5 | . . 2 . 2 . . . . 1 Drop 3 | . . . 1 2 . . . . . Fire 12 | . . 4 . 2 . . . . 6 Melee 6 | . . 1 2 3 . . . . . Ram 4 | . . . 2 . . . . 1 1 Kick . | . . . . . . . . . . Crush . | . . . . . . . . . . Escape Stasis 32 | . . . . . . . . . 32 Rewire . | . . . . . . . . . . Trap . | . . . . . . . . . . Miscellaneous . | . . . . . . . . . . Route ------- -11/Junkyard -10/Materials (discovered 2 exits: [*Mat] / *Min) -10/Mines -9/Materials -8/Materials -7/Factory -7/Waste -7/Factory -7/DSF -7/Garrison (discovered 2 exits: [*Fac x2]) History --------- Turn | Location | Event 2 | -11/Junkyard | Discovered new exit (range 16) 14 | -11/Junkyard | Entered Materials 21 | -10/Materials | Identified exit to Mines 40 | -10/Materials | Discovered new exit (range 18) 47 | -10/Materials | Entered Mines 50 | -10/Mines | Met a Derelict who couldn't figure out how to use a Trap Extractor 97 | -10/Mines | Received a Rocket Launcher from a helpful Derelict 128 | -10/Mines | Met a Derelict bent on vengeance 191 | -10/Mines | Found the Drone Emporium 193 | -10/Mines | Found Prototype Device 193 | -10/Mines | Identified Decoy Drone Bay 221 | -10/Mines | Core integrity fell below 50% 274 | -10/Mines | Discovered new exit (range 14) 279 | -10/Mines | Learned Materials stockpile data 290 | -10/Mines | Entered Materials 290 | -9/Materials | Evolved 2 slots: Propulsion x1, Utility x1 321 | -9/Materials | Build established: Mutant 424 | -9/Materials | Discovered new exit (range 10) 434 | -9/Materials | Entered another Materials area 434 | -8/Materials | Evolved 2 slots: Propulsion x1, Utility x1 552 | -8/Materials | Discovered new exit (range 10) 559 | -8/Materials | Entered Factory 559 | -7/Factory | Evolved 2 slots: Propulsion x1, Utility x1 567 | -7/Factory | Sucked down chute 567 | -7/Factory | Entered Waste 568 | -7/Waste | Met a frightened Derelict 570 | -7/Waste | Spotted C-40 Crusher 571 | -7/Waste | Spotted C-40 Crusher 574 | -7/Waste | Spotted C-40 Crusher 582 | -7/Waste | EMP discharged 582 | -7/Waste | System corruption reached 10% 584 | -7/Waste | Spotted C-40 Crusher 585 | -7/Waste | Spotted C-40 Crusher 596 | -7/Waste | Spotted C-40 Crusher 607 | -7/Waste | Discovered new exit (range 10) 613 | -7/Waste | Entered Factory 618 | -7/Factory | Identified exit to DSF 630 | -7/Factory | Entered DSF 652 | -7/DSF | Additional patrols routed to DSF 659 | -7/DSF | Discovered new exit (range 15) 663 | -7/DSF | Entered Garrison 684 | -7/Garrison | Triggered checkpoint 720 | -7/Garrison | Lost 3 parts (1n2u) 732 | -7/Garrison | Discovered new exit (range 14) 736 | -7/Garrison | Attempted to access garrison exit controls, blocked by remote lockdown 762 | -7/Garrison | Triggered checkpoint 763 | -7/Garrison | Triggered checkpoint 774 | -7/Garrison | Discovered new exit (range 8) 776 | -7/Garrison | Attempted to access garrison exit controls, blocked by remote lockdown 798 | -7/Garrison | Core integrity fell below 50% 802 | -7/Garrison | Triggered checkpoint 813 | -7/Garrison | Core integrity fell below 20% 816 | -7/Garrison | Lost 5 parts (4n1w) 825 | -7/Garrison | Destroyed by S-27 Virus with Autogun Last Messages --------------- Garrison Door activated. 00793_ Slug penetrates Wall. 00801_ Penetrated by Slug. 00802_ Beams of light sweep through the air. An alarm sounds. 00803_ System corrupted: Component data lost. 00805_ Slug penetrates Wall. 00807_ Triggered Stasis Trap. 00807_ A bubble of rippling energy engulfs the area. 00807_ Field strength at 94. 00808_ Field strength at 83. 00809_ S-27 Virus destroyed. 00809_ Field strength at 73. 00809_ Penetrated by Slug. 00810_ Field strength at 57. 00811_ Field strength at 46. 00812_ Field strength at 36. 00812_ Penetrated by Slug. 00813_ Field strength at 21. 00814_ Stasis field depleted. 00819_ System corrupted: Matter fused (-6). Map ----- +----------------------------------------------------+ | ?????????????????????????????????????????????????? | | ?????????????????????????????????????????????????? | | ?????????????????????????????????????????????????? | | ?????????????????????????????????????????????????? | | ?????????????????????????????????????????????????? | | ?????????????????????????????????????????????????? | | ?????????????????????????????????????????????????? | | ?????????????????????????????????????????????????? | | ?????????????????????????????????????????????????? | | ?????????????????????????????????????????????????? | | ?????????????????????????????????????????????????? | | ?????????????????????????????????????????????????? | | ?????????????????????????????????????????????????? | | ?????????????????????????????????????????????????? | | ?????????????????????????????????????????????????? | | ?????????????????????????????????????????????????? | | ??????????????????????????????#??????????????????? | | ????????????????????????????? #??????????????????? | | ????????????????????????????? #??????????????????? | | ???????????????????????????? #??????????????????? | | ???????????????????????????? #??????????????????? | | ??????????????????????????? #??????????????????? | | ?????###################### #??????????????????? | | ?????# s #??????????????????? | | ?????# s #??????????????????? | | ?????# ps ss @ #??????????????????? | | ?????# #######++#############??????????????????? | | ?????# #???????????????????????????????????????? | | ?????# #???????????????????????????????????????? | | ?????# #???????????????????????????????????????? | | ?????# #???????????????????????????????????????? | | ####?# #???????????????????????????????????????? | | ## #???????????????????????????????????????? | | ## #???????????????????????????????????????? | | ###?????????????????????????????????????? | | / ??????????????????????????????????????? | | / ??????????????????????????????????????? | | ## #???????????????????????????????????????? | | ## =###?????????????????????????????????????? | | [%= #?????????????????????????????????????? | | #?????????????????????????????????????? | | #?????????????????????????????????????? | | #?????????????????????????????????????? | | ## ###?????????????????????????????????????? | | ## ##########??????????????????????????????? | | #??????????????????????????????? | | #??????????????????????????????? | | ####### #??????????????????????????????? | | ## ##?????# #??????????????????????????????? | | ## #??????# #??????????????????????????????? | +----------------------------------------------------+ Best States ------------- Heat Dissipation 34 Energy Generation 5 Energy Capacity 100 Matter Stores 300 Matter Capacity 300 Sight Range 18 Robot Scan Range 14 Terrain Scan Density 210 Evasion (%) 71 Item Schematics ----------------- None Robot Schematics ------------------ None Fabricated ------------ Nothing Alien Tech Used ----------------- None Achievements -------------- None Challenges ------------ None Game ------ Seed LauncherSmallPlating Manual? 0 Play Time 00:20:04 Cumulative 314.1 hours Start 2023.05.11 @ 22:02:35 End 2023.05.13 @ 16:41:08 Sessions 2 Manual Loads 0 Difficulty Rogue Special Mode None Game No. 128 Rogue 112 Adventurer 8 Explorer 8 Win Type - Total 24 Types 12/1/7/1/1/1/1/0/0 Lore% 88 Gallery% 87 Achievement% 76 Wizard Run 0 Options --------- ASCII 1 Keyboard 1 Movement Vi Keybinds 0 Fullscreen 1 Font 18/SmallcapsGlow Map View 76x50 Tactical HUD 1 Map Filters NONE Filters NONE Steam 0 RUN: dd0f3f73-3eb6-4aaf-a030-3a392931d375